bitfinex-derivatives/quotes_SOLF0:USTF0_20250924
["timestamp","ask_amount","ask_price","bid_price","bid_amount"]
[1758743719276,3.35804816,213.72,213.71,4.209]
[1758743719677,3.35804816,213.72,213.69,4.2094]
[1758743719876,3.35804816,213.71,213.69,4.2094]
[1758743720073,3.35804816,213.7,213.69,4.2094]
[1758743721785,3.35804816,213.7,213.69,11.7394]
[1758743722784,42.26,213.77,213.72,11.7387]
[1758743722974,3.35727745,213.76,213.69,7.53]
[1758743723176,3.35727745,213.75,213.7,4.2092]
[1758743723382,3.35727745,213.74,213.65,7.53]
[1758743723588,10.93651009,213.73,213.65,7.53]
[1758743723782,3.35727745,213.72,213.68,7.53]
[1758743723977,3.35727745,213.71,213.65,7.62]
[1758743724178,3.35727745,213.7,213.66,65.4905]
[1758743724380,114.62,213.76,213.71,11.8289]
[1758743724579,3.35778653,213.75,213.71,4.2089]
[1758743724880,3.35778653,213.74,213.69,4.2094]
[1758743725080,3.35778653,213.73,213.69,4.2094]
[1758743725384,3.35778653,213.72,213.69,4.2094]
[1758743725682,3.35778653,213.71,213.69,4.2094]
[1758743725882,3.35778653,213.7,213.69,4.2094]
[1758743726285,3.35778653,213.7,213.69,11.8294]
[1758743726681,3.35778653,213.7,213.66,4.2099]
[1758743726880,2.15810873,213.73,213.66,11.8299]
[1758743726881,3.35778653,213.69,213.66,11.8299]
[1758743727081,3.35778653,213.68,213.67,7.62]
[1758743729891,4.52737783,213.68,213.67,7.62]
[1758743730586,4.52737783,213.68,213.63,4.2105]
[1758743730587,6.68548656,213.68,213.63,4.2105]
[1758743730792,4.52737783,213.67,213.63,11.8305]
[1758743730987,4.52737783,213.66,213.63,4.2105]
[1758743731195,4.52737783,213.65,213.64,7.62]
[1758743731393,1.1695913,213.65,213.64,7.62]
[1758743731696,4.68159409,213.65,213.64,7.62]
[1758743732087,4.68162089,213.65,213.64,7.62]
[1758743738998,4.68162089,213.65,213.63,4.2105]
[1758743739192,4.68162089,213.64,213.63,11.8305]
[1758743739496,1.1696181,213.64,213.63,11.8305]
[1758743740593,2.15810873,213.68,213.65,11.8302]
[1758743740798,4.679342,213.67,213.66,7.62]
[1758743741497,2.15810873,213.74,213.66,7.62]
[1758743742301,2.15810873,213.74,213.67,4.2097]
[1758743742605,2.15810873,213.74,213.66,7.62]
[1758743743903,2.15810873,213.74,213.7,4.2092]
[1758743744699,2.15810873,213.74,213.68,4.2097]
[1758743746604,2.15810873,213.71,213.68,4.2097]
[1758743746807,2.15810873,213.71,213.68,11.8297]
[1758743747104,2.15810873,213.71,213.69,7.62]
[1758743750313,2.15810873,213.71,213.62,7.62]
[1758743751210,2.15810873,213.71,213.67,7.62]
[1758743752409,2.15810873,213.71,213.68,7.62]
[1758743752606,5.16449083,213.73,213.68,7.62]
[1758743752805,5.16449083,213.75,213.67,7.62]
[1758743753008,7.32259956,213.75,213.67,7.62]
[1758743753208,2.15810873,213.75,213.67,7.62]
[1758743753507,4.7608191,213.74,213.67,7.62]
[1758743753712,4.7608191,213.73,213.67,7.62]
[1758743753913,4.7608191,213.72,213.67,7.62]
[1758743754212,6.91892783,213.71,213.62,7.43]
[1758743754411,4.7608191,213.7,213.68,4.2096]
[1758743754612,2.15810873,213.71,213.69,7.43]
[1758743754812,4.76075746,213.7,213.69,7.43]
[1758743757718,3.59129767,213.7,213.69,7.43]
[1758743761921,4.76069412,213.7,213.69,7.43]
[1758743774622,9.412e-05,213.7,213.69,7.43]
[1758743777528,2.15810873,213.74,213.7,65.4779]
[1758743777925,2.15810873,213.74,213.71,7.63]
[1758743778133,2.15810873,213.76,213.7,65.4779]
[1758743778427,2.15810873,213.76,213.71,7.63]
[1758743778919,2.15810873,213.76,213.69,65.4795]
[1758743779124,5.16449083,213.75,213.66,7.63]
[1758743779326,2.15810873,213.71,213.66,7.63]
[1758743779631,5.16449083,213.75,213.71,4.2089]
[1758743780427,5.16449083,213.74,213.69,4.2094]
[1758743780623,5.16449083,213.73,213.69,4.2094]
[1758743780831,2.15810873,213.7,213.69,4.2094]
[1758743781023,5.16449083,213.73,213.69,4.2094]
[1758743781233,2.15810873,213.7,213.69,4.2094]
[1758743781632,2.15810873,213.71,213.69,4.2094]
[1758743782226,2.15810873,213.71,213.66,4.2099]
[1758743782425,2.15810873,213.71,213.62,7.63]
[1758743782633,7.32259956,213.71,213.62,7.63]
[1758743783032,5.16449083,213.71,213.62,7.63]
[1758743783336,5.16449083,213.7,213.62,7.63]
[1758743784128,5.16449083,213.7,213.65,4.2101]
[1758743784630,5.16449083,213.7,213.62,7.63]
[1758743786224,5.16449083,213.7,213.64,4.2104]
[1758743786536,4.79947368,213.69,213.64,4.2104]
[1758743786731,4.79947368,213.68,213.64,4.2104]
[1758743786926,4.79947368,213.67,213.64,4.2104]
[1758743787134,4.79947368,213.66,213.64,4.2104]
[1758743787334,4.79947368,213.65,213.64,4.2104]
[1758743788129,4.79947368,213.65,213.64,11.6104]
[1758743791735,5.16449083,213.73,213.7,4.2091]
[1758743799864,5.16449083,213.73,213.68,4.2096]
[1758743801858,5.16449083,213.72,213.66,4.2101]
[1758743802061,5.16449083,213.72,213.61,7.4]
[1758743803261,4.2092,213.71,213.64,4.2103]
[1758743803661,4.78226122,213.7,213.64,4.2103]
[1758743803961,4.78226122,213.69,213.65,7.4]
[1758743804259,4.78226122,213.68,213.65,7.4]
[1758743804456,4.78226122,213.67,213.65,7.4]
[1758743804653,4.78226122,213.66,213.65,7.4]
[1758743822181,4.78226122,213.66,213.64,4.2103]
[1758743822376,4.78226122,213.65,213.64,4.2103]
[1758743823075,4.78226122,213.65,213.64,11.5903]
[1758743825681,6.122e-05,213.65,213.64,11.5903]
[1758743828186,5.16449083,213.71,213.7,4.2093]
[1758743828388,5.16449083,213.71,213.65,7.38]
[1758743829282,5.16449083,213.71,213.7,4.2093]
[1758743831690,114.52,213.75,213.7,4.2093]
[1758743831691,5.16449083,213.72,213.7,4.2093]
[1758743832090,5.16449083,213.72,213.71,4.209]
[1758743835996,5.16449083,213.72,213.71,11.589]
[1758743836196,5.16449083,213.73,213.71,11.589]
[1758743837097,5.16449083,213.73,213.72,7.38]
[1758743837597,9.98211349,213.73,213.72,7.38]
[1758743837797,4.81762266,213.73,213.72,7.38]
[1758743839201,0.23884,213.77,213.74,7.38]
[1758743839589,0.23884,213.77,213.72,65.4703]
[1758743839793,0.23884,213.77,213.73,7.38]
[1758743840498,0.23884,213.77,213.72,65.4703]
[1758743840686,0.23884,213.77,213.73,7.38]
[1758743840892,0.23884,213.77,213.75,4.2081]
[1758743841096,0.23884,213.77,213.75,11.5881]
[1758743842889,0.23884,213.77,213.76,7.38]
[1758743851496,3.73838388,213.77,213.76,7.38]
[1758743855004,3.73838388,213.77,213.75,4.2081]
[1758743855203,3.4983241,213.76,213.75,4.2081]
[1758743855404,4.66761506,213.76,213.75,4.2081]
[1758743859500,4.66761506,213.76,213.73,4.2086]
[1758743859706,4.66761506,213.75,213.73,4.2086]
[1758743859907,4.66761506,213.74,213.73,4.2086]
[1758743860606,4.66761506,213.74,213.73,11.6786]
[1758743860806,3.4983241,213.74,213.73,11.6786]
[1758743861106,3.49899017,213.76,213.75,11.6783]
[1758743861302,4.66833619,213.76,213.75,11.6783]
[1758743864317,4.66833619,213.76,213.75,4.2083]
[1758743866618,4.66833619,213.76,213.75,11.6783]
[1758743874722,4.66833619,213.76,213.75,4.2083]
[1758743875928,4.66833619,213.76,213.73,11.4686]
[1758743876230,119.02833619,213.75,213.67,7.26]
[1758743876427,4.66833619,213.74,213.69,4.2094]
[1758743876623,4.66833619,213.73,213.7,7.26]
[1758743876933,4.66833619,213.72,213.7,7.26]
[1758743877227,4.66833619,213.71,213.7,7.26]
[1758743878333,4.66833619,213.71,213.69,4.2094]
[1758743878529,4.66833619,213.7,213.69,4.2094]
[1758743878929,4.66833619,213.7,213.69,11.4694]
[1758743879731,4.66833619,213.7,213.69,4.2094]
[1758743880924,4.66833619,213.7,213.69,12.0494]
[1758743881624,5.16449083,213.77,213.71,65.4747]
[1758743881822,124.0,213.83,213.71,65.4747]
[1758743881823,5.16449083,213.79,213.72,7.84]
[1758743882132,5.16449083,213.79,213.74,4.2085]
[1758743882725,5.16449083,213.79,213.72,12.0488]
[1758743882928,5.16449083,213.78,213.72,4.2088]
[1758743883228,5.16449083,213.78,213.69,7.84]
[1758743883229,5.16449083,213.76,213.69,7.84]
[1758743883734,5.16449083,213.77,213.69,7.84]
[1758743884230,5.16449083,213.77,213.71,4.209]
[1758743884435,5.16449083,213.76,213.71,4.209]
[1758743884629,61.16449083,213.76,213.71,12.049]
[1758743885132,5.16449083,213.72,213.58,7.84]
[1758743885329,5.16449083,213.7,213.58,7.84]
[1758743886330,5.16449083,213.7,213.63,4.2105]
[1758743887335,9.37369083,213.71,213.63,4.2105]
[1758743887836,70.29369083,213.71,213.62,7.84]
[1758743888025,5.16449083,213.69,213.62,7.84]
[1758743888225,9.37389083,213.7,213.62,7.84]
[1758743889333,5.16449083,213.69,213.62,7.84]
[1758743890337,9.37429083,213.68,213.62,7.84]
[1758743891137,4.2098,213.68,213.62,7.84]
[1758743892741,118.5898,213.68,213.62,7.84]
[1758743893338,4.2098,213.68,213.62,7.84]
[1758743893641,4.2101,213.66,213.57,7.84]
[1758743893837,4.6218123,213.65,213.57,7.84]
[1758743894035,4.6218123,213.64,213.57,7.84]
[1758743894236,4.6218123,213.63,213.57,7.84]
[1758743894436,4.6218123,213.62,213.56,4.2119]
[1758743894641,3.4515516,213.61,213.57,7.84]
[1758743894842,4.62185059,213.6,213.57,7.84]
[1758743895141,4.62194445,213.59,213.57,7.84]
[1758743895342,3.4515516,213.58,213.57,7.84]
[1758743895539,4.62200572,213.58,213.57,7.84]
[1758743895838,3.4515516,213.58,213.57,7.84]
[1758743896037,3.4515516,213.64,213.52,7.84]
[1758743896237,4.6220192,213.63,213.52,7.84]
[1758743896437,4.6220192,213.62,213.52,7.84]
[1758743896636,4.6220192,213.61,213.52,7.84]
[1758743896843,95.2220192,213.6,213.52,7.84]
[1758743897039,4.6220192,213.59,213.52,7.84]
[1758743897339,4.6220192,213.58,213.52,7.84]
[1758743897541,4.2103,213.65,213.52,7.84]
[1758743897739,35.41053995,213.64,213.52,7.84]
[1758743898043,4.63053995,213.63,213.52,7.84]
[1758743898244,4.63053995,213.62,213.52,7.84]
[1758743898445,4.63053995,213.61,213.52,7.84]
[1758743898640,4.63053995,213.6,213.52,7.84]
[1758743898841,4.63053995,213.59,213.52,7.84]
[1758743899149,30.78,213.64,213.52,7.84]
[1758743899444,4.62843027,213.63,213.55,7.84]
[1758743899643,4.62843027,213.62,213.55,7.84]
[1758743899841,4.62843027,213.61,213.53,65.5296]
[1758743900040,24.24449083,213.68,213.54,7.84]
[1758743900240,4.62779771,213.67,213.54,7.84]
[1758743900446,4.62779771,213.66,213.57,12.0518]
[1758743900744,4.62779771,213.65,213.57,7.84]
[1758743901041,4.62779771,213.64,213.57,7.84]
[1758743901244,4.62779771,213.63,213.57,7.84]
[1758743901442,4.62779771,213.62,213.56,7.84]
[1758743901645,4.62779771,213.61,213.54,7.84]
[1758743901845,4.62779771,213.6,213.54,7.84]
[1758743902144,4.62779771,213.59,213.54,7.84]
[1758743902341,19.08,213.68,213.54,7.84]
[1758743902646,9.79061854,213.67,213.54,7.84]
[1758743902948,9.79061854,213.66,213.54,7.84]
[1758743903141,4.62612771,213.65,213.54,7.84]
[1758743903341,4.62612771,213.64,213.54,7.84]
[1758743903544,4.62612771,213.63,213.54,7.84]
[1758743903743,4.62612771,213.62,213.54,7.84]
[1758743904052,4.62612771,213.61,213.54,7.84]
[1758743904244,4.62612771,213.6,213.54,7.84]
[1758743904447,4.62612771,213.59,213.54,7.61]
[1758743904642,4.62612771,213.58,213.54,7.61]
[1758743904845,4.2112,213.61,213.52,7.61]
[1758743905042,4.62505635,213.6,213.52,7.61]
[1758743905246,4.62505635,213.59,213.52,7.61]
[1758743905442,22.64,213.64,213.52,7.61]
[1758743905744,4.62463917,213.63,213.52,7.61]
[1758743905944,4.62463917,213.62,213.52,7.61]
[1758743906144,4.62463917,213.61,213.52,7.61]
[1758743906349,3.45424786,213.6,213.54,4.2123]
[1758743906644,4.6246382,213.59,213.52,65.5331]
[1758743906845,49.08,213.65,213.53,7.61]
[1758743907045,4.62429235,213.64,213.58,7.61]
[1758743907252,4.62429235,213.63,213.54,7.61]
[1758743907546,4.62440043,213.62,213.54,7.61]
[1758743907743,1.1702463,213.61,213.58,4.2116]
[1758743907943,66.88,213.67,213.59,7.61]
[1758743908151,4.62471448,213.66,213.59,7.61]
[1758743908448,4.62471448,213.65,213.59,7.61]
[1758743908641,4.62471448,213.64,213.53,7.61]
[1758743908841,4.62471448,213.63,213.53,7.61]
[1758743909041,4.62471448,213.62,213.53,7.61]
[1758743909348,66.88,213.67,213.57,7.61]
[1758743909349,1.17024975,213.61,213.57,7.61]
[1758743909546,4.2102,213.66,213.57,7.61]
[1758743909847,4.62525732,213.65,213.57,7.61]
[1758743910045,4.62525732,213.64,213.57,7.61]
[1758743910347,4.62525732,213.63,213.57,7.61]
[1758743910547,4.62525732,213.62,213.57,7.61]
[1758743910744,1.17024975,213.61,213.55,7.61]
[1758743910942,4.62531276,213.6,213.54,4.2124]
[1758743911147,1.17024975,213.59,213.54,4.2124]
[1758743911352,72.04449083,213.67,213.55,7.61]
[1758743911652,4.62583393,213.66,213.55,7.61]
[1758743911847,4.62583393,213.65,213.55,7.61]
[1758743912044,4.62583393,213.64,213.55,7.61]
[1758743912243,4.62583393,213.63,213.55,7.61]
[1758743912445,4.62583393,213.62,213.55,11.8221]
[1758743912643,4.62583393,213.61,213.55,11.8221]
[1758743912843,4.62583393,213.6,213.55,4.2121]
[1758743913052,1.17034351,213.59,213.56,7.61]
[1758743913346,4.2108,213.63,213.56,7.61]
[1758743913551,4.62717073,213.62,213.56,7.61]
[1758743913751,4.62717073,213.61,213.55,11.8221]
[1758743913950,4.62717073,213.6,213.55,4.2121]
[1758743914150,4.62717073,213.59,213.55,4.2121]
[1758743914351,4.2108,213.63,213.56,7.61]
[1758743914648,4.62807066,213.62,213.56,7.61]
[1758743914846,4.62807066,213.61,213.55,4.2121]
[1758743915051,4.62807066,213.6,213.54,7.61]
[1758743915245,4.62807066,213.59,213.53,11.8225]
[1758743915553,4.62807066,213.58,213.52,7.61]
[1758743915850,4.62807066,213.58,213.51,4.2129]
[1758743915851,4.62807066,213.57,213.51,4.2129]
[1758743916152,1.17034408,213.56,213.51,4.2129]
[1758743916354,5.16449083,213.64,213.52,7.61]
[1758743916650,4.62985091,213.63,213.52,7.61]
[1758743916841,4.62985091,213.62,213.52,7.61]
[1758743917041,4.62985091,213.61,213.52,7.61]
[1758743917250,8.84125091,213.6,213.52,7.61]
[1758743917555,4.62985091,213.59,213.52,7.61]
[1758743917752,4.62985091,213.58,213.52,7.61]
[1758743918049,4.62985091,213.57,213.52,4.2127]
[1758743918246,4.62985091,213.56,213.52,4.2127]
[1758743918448,4.2114,213.6,213.53,7.61]
[1758743918647,4.63255906,213.59,213.53,7.61]
[1758743918947,4.63255906,213.58,213.52,4.2127]
[1758743919152,4.63255906,213.57,213.52,4.2127]
[1758743919450,4.63255906,213.56,213.53,7.61]
[1758743919656,4.63255906,213.55,213.53,7.61]
[1758743919954,1.1704389,213.54,213.53,7.61]
[1758743920148,5.3819389,213.59,213.53,7.61]
[1758743920348,4.633851,213.58,213.53,7.61]
[1758743920556,4.633851,213.57,213.53,7.61]
[1758743920847,4.633851,213.56,213.52,4.2127]
[1758743921051,4.633851,213.55,213.53,7.61]
[1758743921255,4.63625951,213.54,213.53,7.61]
[1758743922451,5.16449083,213.62,213.53,0.46]
[1758743922656,3.46678148,213.61,213.51,7.61]
[1758743922956,3.46678148,213.6,213.51,7.61]
[1758743923155,3.46678148,213.59,213.51,7.61]
[1758743923348,3.46678148,213.58,213.51,7.61]
[1758743923548,3.46678148,213.57,213.51,7.61]
[1758743923744,3.46678148,213.56,213.51,7.61]
[1758743923952,4.211,213.62,213.55,11.8221]
[1758743924153,3.46816773,213.61,213.55,11.8221]
[1758743924353,3.46816773,213.6,213.56,7.61]
[1758743924557,3.46816773,213.59,213.56,7.61]
[1758743924749,3.46816773,213.58,213.56,7.61]
[1758743924950,3.46816773,213.57,213.56,7.61]
[1758743926752,3.46816773,213.57,213.54,7.61]
[1758743926959,3.46816773,213.56,213.5,7.61]
[1758743927161,3.46816773,213.55,213.5,7.61]
[1758743927366,1.18,213.61,213.5,7.61]
[1758743927367,3.46816773,213.54,213.5,7.61]
[1758743927561,4.2113,213.6,213.5,7.61]
[1758743927761,3.47274755,213.59,213.5,7.61]
[1758743927964,3.47274755,213.58,213.5,7.61]
[1758743928258,3.47274755,213.57,213.56,7.61]
[1758743934666,4.64313141,213.57,213.56,7.61]
[1758743939368,1.17038386,213.57,213.56,7.61]
[1758743939566,5.16449083,213.65,213.56,8.07]
[1758743939875,5.16449083,213.66,213.56,7.61]
[1758743940173,6.31449083,213.66,213.63,7.25]
[1758743940463,5.16449083,213.65,213.56,7.25]
[1758743940665,1.15,213.63,213.58,4.2116]
[1758743940865,5.16449083,213.64,213.58,4.2116]
[1758743941069,1.15,213.63,213.58,4.2116]
[1758743941270,1.15,213.62,213.58,11.4616]
[1758743941471,5.16449083,213.62,213.58,7.25]
[1758743942071,1.15,213.6,213.58,7.25]
[1758743942268,1.15,213.6,213.56,4.212]
[1758743942467,1.15,213.6,213.56,11.462]
[1758743942667,1.15,213.6,213.56,7.25]
[1758743942867,5.16449083,213.61,213.56,7.25]
[1758743943069,1.15,213.6,213.56,7.25]
[1758743943264,1.15,213.6,213.55,7.25]
[1758743943667,1.15,213.6,213.56,7.25]
[1758743943872,1.15,213.6,213.51,7.25]
[1758743944270,1.15,213.6,213.56,4.2119]
[1758743944470,5.16449083,213.62,213.56,11.4619]
[1758743944879,5.16449083,213.61,213.56,4.2119]
[1758743945082,5.16449083,213.61,213.57,7.25]
[1758743945376,6.31449083,213.6,213.53,7.25]
[1758743946177,5.16449083,213.57,213.46,7.25]
[1758743946373,6.31449083,213.53,213.46,7.25]
[1758743946673,5.16449083,213.56,213.46,7.25]
[1758743946874,120.73449083,213.57,213.46,7.25]
[1758743947064,5.16449083,213.56,213.49,7.25]
[1758743947774,5.16449083,213.55,213.49,7.25]
[1758743947971,6.31449083,213.55,213.49,7.25]
[1758743948369,10.52669083,213.55,213.49,7.25]
[1758743948570,6.31449083,213.55,213.49,7.25]
[1758743948772,114.62,213.54,213.45,7.25]
[1758743949174,114.64,213.56,213.47,7.25]
[1758743949374,114.64,213.57,213.49,7.25]
[1758743949875,5.16449083,213.58,213.5,65.5392]
[1758743950174,114.64,213.59,213.51,7.25]
[1758743950772,114.64,213.59,213.53,11.4626]
[1758743951476,4.6819436,213.58,213.54,7.25]
[1758743951672,4.6819436,213.57,213.54,7.25]
[1758743951978,4.6819436,213.56,213.54,7.25]
[1758743952180,3.51157922,213.55,213.54,7.25]
[1758743955280,4.68199324,213.55,213.54,7.25]
[1758743955477,4.68199803,213.55,213.53,4.2126]
[1758743955678,4.68199803,213.54,213.53,4.2126]
[1758743955883,4.68199803,213.54,213.53,11.4626]
[1758743956079,4.68199803,213.54,213.53,7.25]
[1758743956280,5.83199803,213.54,213.48,7.25]
[1758743956475,4.68199803,213.53,213.4,65.5674]
[1758743956775,4.68199803,213.52,213.41,14.15438123]
[1758743956983,5.83199803,213.51,213.42,7.25]
[1758743957171,4.68199803,213.5,213.43,4.2144]
[1758743957374,4.68199803,213.49,213.43,4.2144]
[1758743957575,3.51157922,213.48,213.43,4.2144]
[1758743957782,3.51157922,213.47,213.42,7.25]
[1758743957983,55.0,213.51,213.47,4.2138]
[1758743958287,7.43e-06,213.5,213.48,7.25]
[1758743958480,114.78,213.57,213.48,7.25]
[1758743959288,114.78,213.57,213.51,7.25]
[1758743959785,1.15,213.59,213.51,7.25]
[1758743960085,115.24,213.58,213.51,7.25]
[1758743960478,120.40449083,213.58,213.44,7.25]
[1758743960782,1.15,213.55,213.44,7.25]
[1758743960988,1.15,213.53,213.44,7.25]
[1758743961382,5.16449083,213.52,213.44,7.25]
[1758743961582,104.68,213.51,213.44,7.25]
[1758743961982,105.83,213.51,213.44,7.25]
[1758743962183,110.0432,213.51,213.44,11.4643]
[1758743962382,105.83,213.51,213.44,7.25]
[1758743962583,1.15,213.5,213.36,65.5801]
[1758743962788,1.15,213.5,213.37,7.25]
[1758743963188,4.2136,213.49,213.41,4.2149]
[1758743963385,1.15,213.5,213.41,4.2149]
[1758743964283,4.2138,213.48,213.41,4.2149]
[1758743964487,1.15,213.47,213.41,4.2149]
[1758743966387,5.3639,213.47,213.4,7.25]
[1758743966586,1.15,213.49,213.33,7.49]
[1758743966789,1.15,213.46,213.33,7.49]
[1758743967090,1.15,213.45,213.33,7.49]
[1758743967292,41.46,213.44,213.33,7.49]
[1758743967585,1.15,213.43,213.33,7.49]
[1758743968092,71.38,213.44,213.34,7.49]
[1758743968589,1.15,213.47,213.34,7.49]
[1758743968792,1.15,213.45,213.34,7.49]
[1758743969487,1.15,213.41,213.34,7.49]
[1758743969684,1.15,213.42,213.28,7.49]
[1758743969880,5.16449083,213.45,213.28,7.49]
[1758743970086,1.15,213.4,213.3,4.2172]
[1758743970281,53.84,213.39,213.3,4.2172]
[1758743970486,3.46086734,213.38,213.31,7.49]
[1758743970680,3.46086734,213.38,213.28,65.6059]
[1758743970681,29.17,213.43,213.35,7.49]
[1758743970883,3.46119335,213.42,213.35,7.49]
[1758743971083,45.72119335,213.41,213.35,7.49]
[1758743971286,42.26,213.41,213.35,7.49]
[1758743971687,84.33944956,213.4,213.34,4.2164]
[1758743971889,1.15,213.39,213.32,7.49]
[1758743972091,4.60936836,213.39,213.32,7.49]
[1758743972392,1.15,213.39,213.32,4.2167]
[1758743972585,104.64,213.38,213.32,4.2167]
[1758743972785,1.15,213.47,213.32,4.2167]
[1758743972980,1.15,213.45,213.33,7.49]
[1758743973186,4.62857514,213.44,213.33,7.49]
[1758743973385,1.15,213.4,213.33,7.49]
[1758743973587,115.94,213.39,213.33,7.49]
[1758743974097,115.94,213.39,213.3,4.2172]
[1758743974395,1.15,213.38,213.3,4.2172]
[1758743975490,115.92,213.37,213.3,4.2172]
[1758743975990,1.15,213.46,213.33,7.49]
[1758743976193,1.15,213.44,213.33,7.49]
[1758743976392,1.15,213.42,213.33,7.49]
[1758743976592,3.45165485,213.41,213.33,7.49]
[1758743976788,185.04173606,213.4,213.19,65.6335]
[1758743976992,1.15,213.36,213.22,7.49]
[1758743977293,1.15,213.31,213.22,7.49]
[1758743977491,1.15,213.29,213.15,7.49]
[1758743977791,1.15,213.29,213.21,4.2189]
[1758743977792,3.45053606,213.28,213.21,4.2189]
[1758743978097,240.38,213.27,213.21,4.2189]
[1758743978296,240.38,213.27,213.18,7.49]
[1758743978492,1.15,213.29,213.18,7.49]
[1758743978691,116.4,213.28,213.18,7.49]
[1758743979090,1.15,213.27,213.18,7.49]
[1758743979495,1.15,213.27,213.18,11.7093]
[1758743979699,119.85941897,213.26,213.18,11.7093]
[1758743979898,116.42,213.26,213.18,11.7093]
[1758743981201,116.42,213.26,213.18,7.49]
[1758743982195,116.38,213.25,213.18,7.49]
[1758743982397,116.38,213.26,213.2,7.49]
[1758743982592,1.15,213.3,213.2,7.49]
[1758743982789,119.93134324,213.29,213.2,11.7091]
[1758743982992,1.15,213.3,213.2,11.7091]
[1758743983191,113.99126283,213.29,213.2,11.7091]
[1758743983390,110.56,213.29,213.2,11.7091]
[1758743983591,4.57968896,213.28,213.2,7.49]
[1758743983802,119.92968896,213.27,213.2,7.49]
[1758743984004,116.5,213.27,213.2,7.49]
[1758743984698,119.96125993,213.26,213.2,7.49]
[1758743984897,116.48,213.25,213.2,7.49]
[1758743985093,1.15,213.28,213.19,4.2192]
[1758743985299,1.15,213.28,213.19,7.49]
[1758743985300,60.40135178,213.27,213.19,7.49]
[1758743985500,1.15,213.23,213.08,7.49]
[1758743985700,1.15,213.19,213.08,7.49]
[1758743985903,121.43266342,213.18,213.02,7.49]
[1758743986108,66.7947,213.16,213.02,7.49]
[1758743986305,194.27446342,213.17,212.96,7.49]
[1758743986306,65.6581,213.12,212.96,7.49]
[1758743986508,1.15,213.1,213.0,11.713]
[1758743986801,117.08,213.13,213.06,7.49]
[1758743987003,124.0,213.17,213.09,65.6656]
[1758743987203,1.15,213.26,213.12,7.49]
[1758743987402,3.45365502,213.25,213.15,65.6448]
[1758743987594,125.15,213.31,213.21,7.49]
[1758743987798,33.06609045,213.3,213.21,7.49]
[1758743987999,4.62610621,213.29,213.15,7.49]
[1758743988205,3.45387894,213.28,213.15,7.49]
[1758743988404,3.45387894,213.27,213.15,7.49]
[1758743988607,3.45387894,213.26,213.15,7.49]
[1758743988809,1.15,213.28,213.15,7.49]
[1758743989009,3.45324586,213.27,213.15,7.49]
[1758743989207,3.45324586,213.26,213.16,4.2198]
[1758743989507,117.56,213.25,213.15,73.1365]
[1758743989694,1.15,213.28,213.18,4.2195]
[1758743989894,3.45307076,213.27,213.18,4.2195]
[1758743990101,121.03338332,213.26,213.18,4.2195]
[1758743990301,117.58,213.26,213.18,4.2195]
[1758743990702,124.0,213.31,213.2,7.49]
[1758743990899,122.18580931,213.3,213.2,7.49]
[1758743991207,4.62582605,213.29,213.2,7.49]
[1758743991407,1.15,213.27,213.13,7.49]
[1758743991609,3.45308474,213.26,213.13,7.49]
[1758743991799,33.29299708,213.25,213.13,7.49]
[1758743991999,29.84,213.25,213.13,7.49]
[1758743992400,124.0,213.31,213.15,65.6459]
[1758743992611,3.45326099,213.3,213.2,7.49]
[1758743992805,3.45326099,213.29,213.2,7.49]